DEPARTMENT FAMILY,ENTITY,DATE,EXPENSE TYPE,EXPENSE AREA,SUPPLIER,TRANSACTION NUMBER,AMOUNT
HOSPITAL REDEVELOPMENT,HOSPITAL REDEVELOPMENT,03/05/2023,BUSINESS RATES,ESTATES MANAGEMENT,WALSALL MBC,609902,"222,208.00"
PAEDIATRIC CHILDRENS UNIT,PAEDIATRIC CHILDRENS UNIT,17/05/2023,MED & SURG EQUIPMENT,CHILDRENS AND FAMILY SERVICES,MINDRAY UK LTD,10033055,"92,687.28"
OTHER CCG,OTHER CCG,30/05/2023,AQP,BLOCK INCOME,NHS BLACK COUNTRY & WEST BIRMINGHAM CCG,15021194,"50,000.00"
FINANCE DEPARTMENT,FINANCE DEPARTMENT,30/05/2023,OTHER EXPENSES,FINANCE DIRECTOR,NHS PROPERTY SERVICES LTD,15021365,"30,431.92"
GOVERNANCE,GOVERNANCE,30/05/2023,ADMIN & CLERICAL PB6-8A,DIRECTOR OF NURSING,NHS BLACK COUNTRY & WEST BIRMINGHAM CCG,15021418,"44,975.26"
FINANCE DEPARTMENT,FINANCE DEPARTMENT,30/05/2023,OTHER EXPENSES,FINANCE DIRECTOR,NHS PROPERTY SERVICES LTD,15021496,"-30,431.92"
MORTUARY,MORTUARY,22/05/2023,EXP INTRASYS TRUST P2P,CLINICAL SUPPORT SERVICES,ROYAL WOLVERHAMPTON PATHOLOGY,15021590,"59,015.00"
HEALTH RECORDS LIBRARY,HEALTH RECORDS LIBRARY,17/05/2023,DATA PROCESSING,DOS PERFORMANCE,STOR-A-FILE LIMITED,20080961,"439,260.70"
CAP A&E BUILD,CAP A&E BUILD,03/05/2023,PURCHASE OF TANGIBLE ASSET,CAPITAL,BECTON DICKINSON DISPENSING UK LTD,20080969,"99,415.88"
CAP LIFECYC PLANNED,CAP LIFECYC PLANNED,22/05/2023,PURCHASE OF TANGIBLE ASSET,CAPITAL,WILLIAM GOUGH & SONS LTD,20081025,"68,010.53"
PROCUREMENT,PROCUREMENT,15/05/2023,COMPUTER EQUIPMENT AND SOFTW,FINANCE DIRECTOR,KYOCERA DOCUMENT SOLUTIONS (UK LTD),20081038,"42,000.00"
MATERNITY,MATERNITY,22/05/2023,PURCHASE OF TANGIBLE ASSET,CAPITAL,WILLIAM GOUGH & SONS LTD,20081082,"409,324.91"
LAUNDRY SERVICES,LAUNDRY SERVICES,30/05/2023,OTHER GENERAL SUPPLIES & SERV,FACILITIES,BERENDSEN UK LTD,20081190,"70,593.35"
TRUSTWIDE,TRUSTWIDE,30/05/2023,CREDITORS - TRADE,TRUSTWIDE,NHS SUPPLY CHAIN CONSUMABLES,20081233,"106,035.85"
ELECTRONICS DEPARTMENT,ELECTRONICS DEPARTMENT,30/05/2023,MED & SURG MTC,EBME EQUIPMENT,NHS SUPPLY CHAIN MAINTENANCE,20081238,"40,463.26"
TRUSTWIDE,TRUSTWIDE,30/05/2023,CREDITORS - TRADE,TRUSTWIDE,NHS SUPPLY CHAIN CONSUMABLES,20081239,"67,233.28"
TRUSTWIDE,TRUSTWIDE,30/05/2023,CREDITORS - TRADE,TRUSTWIDE,NHS SUPPLY CHAIN CONSUMABLES,20081240,"121,544.19"
TRUSTWIDE,TRUSTWIDE,30/05/2023,CREDITORS - TRADE,TRUSTWIDE,NHS SUPPLY CHAIN CONSUMABLES,20081241,"167,439.44"
SECURITY SERVICES,SECURITY SERVICES,31/05/2023,SECURITY CONTRACTS,FACILITIES,APCOA PARKING UK LTD,50110105,"61,426.22"
SECURITY SERVICES,SECURITY SERVICES,31/05/2023,SECURITY CONTRACTS,FACILITIES,APCOA PARKING UK LTD,50110106,"29,398.85"
CAPITAL MEDICAL EQUIPMENT,CAPITAL MEDICAL EQUIPMENT,10/05/2023,PURCHASE OF TANGIBLE ASSET,CAPITAL,GE MEDICAL SYSTEMS,50110446,"46,569.12"
STAFF FLOW,STAFF FLOW,04/05/2023,AGENCY OTHER CAREER GRADES,FINANCE DIRECTOR,LIAISON PAYROLL,50110474,"98,928.61"
STAFF FLOW,STAFF FLOW,04/05/2023,AGENCY OTHER CAREER GRADES,FINANCE DIRECTOR,LIAISON PAYROLL,50110475,"96,346.16"
TRUSTWIDE,TRUSTWIDE,10/05/2023,UNITARY PAYMENT,TRUSTWIDE,THE WALSALL HOSPITAL CO PLC,50110478,"2,679,543.52"
SECURITY SERVICES,SECURITY SERVICES,10/05/2023,SECURITY CONTRACTS,FACILITIES,APCOA PARKING UK LTD,60063723,"46,120.75"
LAUNDRY SERVICES,LAUNDRY SERVICES,30/05/2023,OTHER GENERAL SUPPLIES & SERV,FACILITIES,BERENDSEN UK LTD,60063769,"66,780.53"
TRUSTWIDE,TRUSTWIDE,03/05/2023,CREDITORS - TRADE,TRUSTWIDE,NHS SUPPLY CHAIN CONSUMABLES,60063902,"107,885.21"
TRUSTWIDE,TRUSTWIDE,03/05/2023,CREDITORS - TRADE,TRUSTWIDE,NHS SUPPLY CHAIN CONSUMABLES,60063903,"140,574.77"
TRUSTWIDE,TRUSTWIDE,09/05/2023,CREDITORS - TRADE,TRUSTWIDE,NHS SUPPLY CHAIN CONSUMABLES,60063904,"129,496.44"
TRUSTWIDE,TRUSTWIDE,09/05/2023,CREDITORS - TRADE,TRUSTWIDE,NHS SUPPLY CHAIN CONSUMABLES,60063905,"201,947.10"
MEDICINE LTC MANAGEMENT,MEDICINE LTC MANAGEMENT,17/05/2023,SOFTWARE MAINTENANCE,MANAGEMENT - MEDICINE LTC,LR SYSTEMS,60063950,"60,000.00"
TRUSTWIDE,TRUSTWIDE,15/05/2023,CREDITORS - TRADE,TRUSTWIDE,NHS SUPPLY CHAIN CONSUMABLES,60063963,"96,111.87"
TRUSTWIDE,TRUSTWIDE,15/05/2023,CREDITORS - TRADE,TRUSTWIDE,NHS SUPPLY CHAIN CONSUMABLES,60063964,"114,661.61"
CAPITAL MEDICAL EQUIPMENT,CAPITAL MEDICAL EQUIPMENT,22/05/2023,PURCHASE OF TANGIBLE ASSET,CAPITAL,CANON MEDICAL SYSTEMS LTD,65000326,"72,573.60"
CAPITAL MEDICAL EQUIPMENT,CAPITAL MEDICAL EQUIPMENT,22/05/2023,PURCHASE OF TANGIBLE ASSET,CAPITAL,CANON MEDICAL SYSTEMS LTD,65000327,"108,000.00"
CAPITAL MEDICAL EQUIPMENT,CAPITAL MEDICAL EQUIPMENT,22/05/2023,PURCHASE OF TANGIBLE ASSET,CAPITAL,CANON MEDICAL SYSTEMS LTD,65000328,"72,571.20"
CAPITAL MEDICAL EQUIPMENT,CAPITAL MEDICAL EQUIPMENT,22/05/2023,PURCHASE OF TANGIBLE ASSET,CAPITAL,CANON MEDICAL SYSTEMS LTD,65000329,"72,571.20"
MAINTENANCE - INFRASTRUCTURE,MAINTENANCE - INFRASTRUCTURE,09/05/2023,COMPUTER HARDWARE AND SOFT MTC,INFORMATION DIRECTOR,DELL BANK INTERNATIONAL D.A.C.,65001050,"58,066.20"
STAFF FLOW,STAFF FLOW,11/05/2023,AGENCY OTHER CAREER GRADES,FINANCE DIRECTOR,LIAISON PAYROLL,65001183,"106,517.55"
STAFF FLOW,STAFF FLOW,11/05/2023,AGENCY OTHER CAREER GRADES,FINANCE DIRECTOR,LIAISON PAYROLL,65001190,"246,608.58"
STAFF FLOW,STAFF FLOW,18/05/2023,AGENCY OTHER CAREER GRADES,FINANCE DIRECTOR,LIAISON PAYROLL,65001225,"105,174.47"
STAFF FLOW,STAFF FLOW,18/05/2023,AGENCY OTHER CAREER GRADES,FINANCE DIRECTOR,LIAISON PAYROLL,65001226,"195,680.55"
STAFF FLOW,STAFF FLOW,25/05/2023,AGENCY OTHER CAREER GRADES,FINANCE DIRECTOR,LIAISON PAYROLL,65001320,"105,680.36"
STAFF FLOW,STAFF FLOW,25/05/2023,AGENCY OTHER CAREER GRADES,FINANCE DIRECTOR,LIAISON PAYROLL,65001321,"208,187.21"
TRUSTWIDE,TRUSTWIDE,10/05/2023,CREDITORS - TRADE,TRUSTWIDE,ALLOGA UK,90345665,"36,000.00"
TRUSTWIDE,TRUSTWIDE,10/05/2023,CREDITORS - TRADE,TRUSTWIDE,ALLOGA UK,90345680,"36,000.00"
TRUSTWIDE,TRUSTWIDE,24/05/2023,CREDITORS - TRADE,TRUSTWIDE,JANSSEN-CILAG LTD,90346718,"30,916.80"
TRUSTWIDE,TRUSTWIDE,31/05/2023,CREDITORS - TRADE,TRUSTWIDE,JANSSEN-CILAG LTD,90347237,"25,764.00"
TRUSTWIDE,TRUSTWIDE,31/05/2023,CREDITORS - TRADE,TRUSTWIDE,JANSSEN-CILAG LTD,90347238,"25,764.00"
TRUSTWIDE,TRUSTWIDE,31/05/2023,CREDITORS - TRADE,TRUSTWIDE,JANSSEN-CILAG LTD,90347239,"28,123.80"
TRUSTWIDE,TRUSTWIDE,31/05/2023,CREDITORS - TRADE,TRUSTWIDE,QUANTUM PHARMACEUTICAL,90347380,"28,790.82"
